{"text_format":"1","workbook":"xlsx","n_sheets":2,"sheets":["календарь","октябрь"],"not_rendered":{"charts":0,"images":0,"macros":1,"external_links":0,"defined_names":2,"comments":0,"pivot_tables":0},"unopened":[],"bounds":{"document_bytes":16777216,"sheet_cells":100000,"rows_first":2000,"rows_last":500,"rows_between":2000,"halvings":0,"cell_chars":16384,"cell_head_chars":4096},"cells_cut":0,"cells_raw":0,"read":"whole","date_system":"1900"}

{"sheet":"календарь","index":0,"n_rows":15,"n_cols":4,"rows_kept":15,"cut":false,"hidden":false,"merged":[]}
["праздники","доп.нерабочие","раб.перенесен.","Период"]
["2021-11-04","2021-11-01",null,"за октябрь 2021 г."]
["2021-11-05","2021-11-02",null,"за ноябрь 2021 г."]
["2021-11-06","2021-11-03",null,"за декабрь 2021 г."]
["2021-11-07",null,null,"за январь 2022 г."]
[null,null,null,"за февраль 2022 г."]
[null,null,null,"за март 2022 г."]
[null,null,null,"за апрель 2022 г."]
[null,null,null,"за май 2022 г."]
[null,null,null,"за июнь 2022 г."]
[null,null,null,"за июль 2022 г."]
[null,null,null,"за август 2022 г."]
[null,null,null,"за октябрь 2022 г."]
[null,null,null,"за ноябрь 2022 г."]
[null,null,null,"за декабрь 2022 г."]

{"sheet":"октябрь","index":1,"n_rows":45,"n_cols":40,"rows_kept":45,"cut":false,"hidden":false,"merged":[[5,4,5,36],[4,4,4,36],[0,5,0,35],[1,5,1,35],[2,5,2,35],[3,3,3,36],[6,4,6,36],[7,1,9,1],[7,2,9,2],[7,3,9,3],[7,4,9,4],[7,5,7,35],[7,36,7,37],[8,19,9,19],[8,20,9,20],[8,21,9,21],[8,22,9,22],[8,23,9,23],[8,24,9,24],[8,25,9,25],[8,26,9,26],[8,27,9,27],[7,38,9,38],[7,39,9,39],[8,5,9,5],[8,6,9,6],[8,7,9,7],[8,8,9,8],[8,9,9,9],[8,10,9,10],[8,11,9,11],[8,12,9,12],[8,13,9,13],[8,14,9,14],[8,15,9,15],[8,16,9,16],[8,17,9,17],[8,18,9,18],[8,34,9,34],[8,35,9,35],[8,36,9,36],[8,37,9,37],[39,14,39,24],[8,28,9,28],[8,29,9,29],[8,30,9,30],[8,31,9,31],[8,32,9,32],[8,33,9,33],[43,14,43,24],[44,4,44,10],[44,14,44,24],[40,4,40,10],[40,14,40,24],[41,14,41,24],[42,4,42,10],[42,14,42,24]]}
[null,null,null,null,null,"Т А Б Е Л Ь",null,null,null,null,null,null,null,null,null,null,null,null,null,null,null,null,null,null,null,null,null,null,null,null,null,null,null,null,null,null,null,null,null,"КОДЫ"]
[null,null,null,null,null,"УЧЕТА ПОСЕЩАЕМОСТИ ДЕТЕЙ",null,null,null,null,null,null,null,null,null,null,null,null,null,null,null,null,null,null,null,null,null,null,null,null,null,null,null,null,null,null,null,null,"Форма по ОКУД  ",504608]
[null,null,null,null,null,"за октябрь 2021 г.",null,null,null,null,null,null,null,null,null,null,null,null,null,null,null,null,null,null,null,null,null,null,null,null,null,null,null,null,null,null,null,null,"Дата  "]
[null,null,"Учреждение","МБОУ \"СОШ пгт Южно-Курильск\"",null,null,null,null,null,null,null,null,null,null,null,null,null,null,null,null,null,null,null,null,null,null,null,null,null,null,null,null,null,null,null,null,null,null,"по ОКПО  ",7789261]
[null,null,"Структурное подразделение",null,"1А класс"]
[null,null,"Вид расчета"]
[null,null,"Режим работы",null,17]
[null,"№№\nп/п","Фамилия, имя\nребенка","Номер\nсчета","Плата\nпо став-\nке","Дни посещения",null,null,null,null,null,null,null,null,null,null,null,null,null,null,null,null,null,null,null,null,null,null,null,null,null,null,null,null,null,null,"Пропущено дней",null,"Дни\nпосеще-\nния, под-\nлежащие\nоплате","Причины\nнепосещения\n(основание)"]
[null,null,null,null,null,{"$f":"DATE(LEFTB(RIGHTB(F3,7),4),SEARCH(MID(F3,5,2),\"ёнвеварпрайюнюлвгенктояек\")/2,1)","v":"2021-10-01"},{"$f":"F9+1","v":"2021-10-02"},{"$f":"G9+1","v":"2021-10-03"},"2021-10-04","2021-10-05","2021-10-06","2021-10-07","2021-10-08","2021-10-09","2021-10-10","2021-10-11","2021-10-12","2021-10-13","2021-10-14","2021-10-15","2021-10-16","2021-10-17","2021-10-18","2021-10-19","2021-10-20","2021-10-21","2021-10-22","2021-10-23","2021-10-24","2021-10-25","2021-10-26","2021-10-27","2021-10-28",{"$f":"IF((AG9+1)>$C11,\"\",AG9+1)","v":"2021-10-29"},{"$f":"IF((AH9+1)>$C11,\"\",AH9+1)","v":"2021-10-30"},"2021-10-31","всего","в том \nчисле\nзасчи-\nтыва-\nемых"]
[]
[null,null,{"$f":"EOMONTH(DATE(LEFTB(RIGHTB(F3,7),4),SEARCH(MID(F3,5,2),\"ёнвеварпрайюнюлвгенктояек\")/2,1),0)","v":"2021-10-31"},null,null,{"$f":"IF(F9<>\"\",IF(ISNUMBER(MATCH(F9,календарь!$C:$C,)),1,IF(OR(ISNUMBER(MATCH(F9,календарь!$A:$A,)),ISNUMBER(MATCH(F9,календарь!$B:$B,)),WEEKDAY(F9,2)>5),0,1)),\"\")","v":1},{"$f":"IF(G9<>\"\",IF(ISNUMBER(MATCH(G9,календарь!$C:$C,)),1,IF(OR(ISNUMBER(MATCH(G9,календарь!$A:$A,)),ISNUMBER(MATCH(G9,календарь!$B:$B,)),WEEKDAY(G9,2)>5),0,1)),\"\")","v":0},{"$f":"IF(H9<>\"\",IF(ISNUMBER(MATCH(H9,календарь!$C:$C,)),1,IF(OR(ISNUMBER(MATCH(H9,календарь!$A:$A,)),ISNUMBER(MATCH(H9,календарь!$B:$B,)),WEEKDAY(H9,2)>5),0,1)),\"\")","v":0},{"$f":"IF(I9<>\"\",IF(ISNUMBER(MATCH(I9,календарь!$C:$C,)),1,IF(OR(ISNUMBER(MATCH(I9,календарь!$A:$A,)),ISNUMBER(MATCH(I9,календарь!$B:$B,)),WEEKDAY(I9,2)>5),0,1)),\"\")","v":1},{"$f":"IF(J9<>\"\",IF(ISNUMBER(MATCH(J9,календарь!$C:$C,)),1,IF(OR(ISNUMBER(MATCH(J9,календарь!$A:$A,)),ISNUMBER(MATCH(J9,календарь!$B:$B,)),WEEKDAY(J9,2)>5),0,1)),\"\")","v":1},{"$f":"IF(K9<>\"\",IF(ISNUMBER(MATCH(K9,календарь!$C:$C,)),1,IF(OR(ISNUMBER(MATCH(K9,календарь!$A:$A,)),ISNUMBER(MATCH(K9,календарь!$B:$B,)),WEEKDAY(K9,2)>5),0,1)),\"\")","v":1},{"$f":"IF(L9<>\"\",IF(ISNUMBER(MATCH(L9,календарь!$C:$C,)),1,IF(OR(ISNUMBER(MATCH(L9,календарь!$A:$A,)),ISNUMBER(MATCH(L9,календарь!$B:$B,)),WEEKDAY(L9,2)>5),0,1)),\"\")","v":1},{"$f":"IF(M9<>\"\",IF(ISNUMBER(MATCH(M9,календарь!$C:$C,)),1,IF(OR(ISNUMBER(MATCH(M9,календарь!$A:$A,)),ISNUMBER(MATCH(M9,календарь!$B:$B,)),WEEKDAY(M9,2)>5),0,1)),\"\")","v":1},{"$f":"IF(N9<>\"\",IF(ISNUMBER(MATCH(N9,календарь!$C:$C,)),1,IF(OR(ISNUMBER(MATCH(N9,календарь!$A:$A,)),ISNUMBER(MATCH(N9,календарь!$B:$B,)),WEEKDAY(N9,2)>5),0,1)),\"\")","v":0},{"$f":"IF(O9<>\"\",IF(ISNUMBER(MATCH(O9,календарь!$C:$C,)),1,IF(OR(ISNUMBER(MATCH(O9,календарь!$A:$A,)),ISNUMBER(MATCH(O9,календарь!$B:$B,)),WEEKDAY(O9,2)>5),0,1)),\"\")","v":0},{"$f":"IF(P9<>\"\",IF(ISNUMBER(MATCH(P9,календарь!$C:$C,)),1,IF(OR(ISNUMBER(MATCH(P9,календарь!$A:$A,)),ISNUMBER(MATCH(P9,календарь!$B:$B,)),WEEKDAY(P9,2)>5),0,1)),\"\")","v":1},{"$f":"IF(Q9<>\"\",IF(ISNUMBER(MATCH(Q9,календарь!$C:$C,)),1,IF(OR(ISNUMBER(MATCH(Q9,календарь!$A:$A,)),ISNUMBER(MATCH(Q9,календарь!$B:$B,)),WEEKDAY(Q9,2)>5),0,1)),\"\")","v":1},{"$f":"IF(R9<>\"\",IF(ISNUMBER(MATCH(R9,календарь!$C:$C,)),1,IF(OR(ISNUMBER(MATCH(R9,календарь!$A:$A,)),ISNUMBER(MATCH(R9,календарь!$B:$B,)),WEEKDAY(R9,2)>5),0,1)),\"\")","v":1},{"$f":"IF(S9<>\"\",IF(ISNUMBER(MATCH(S9,календарь!$C:$C,)),1,IF(OR(ISNUMBER(MATCH(S9,календарь!$A:$A,)),ISNUMBER(MATCH(S9,календарь!$B:$B,)),WEEKDAY(S9,2)>5),0,1)),\"\")","v":1},{"$f":"IF(T9<>\"\",IF(ISNUMBER(MATCH(T9,календарь!$C:$C,)),1,IF(OR(ISNUMBER(MATCH(T9,календарь!$A:$A,)),ISNUMBER(MATCH(T9,календарь!$B:$B,)),WEEKDAY(T9,2)>5),0,1)),\"\")","v":1},{"$f":"IF(U9<>\"\",IF(ISNUMBER(MATCH(U9,календарь!$C:$C,)),1,IF(OR(ISNUMBER(MATCH(U9,календарь!$A:$A,)),ISNUMBER(MATCH(U9,календарь!$B:$B,)),WEEKDAY(U9,2)>5),0,1)),\"\")","v":0},{"$f":"IF(V9<>\"\",IF(ISNUMBER(MATCH(V9,календарь!$C:$C,)),1,IF(OR(ISNUMBER(MATCH(V9,календарь!$A:$A,)),ISNUMBER(MATCH(V9,календарь!$B:$B,)),WEEKDAY(V9,2)>5),0,1)),\"\")","v":0},{"$f":"IF(W9<>\"\",IF(ISNUMBER(MATCH(W9,календарь!$C:$C,)),1,IF(OR(ISNUMBER(MATCH(W9,календарь!$A:$A,)),ISNUMBER(MATCH(W9,календарь!$B:$B,)),WEEKDAY(W9,2)>5),0,1)),\"\")","v":1},{"$f":"IF(X9<>\"\",IF(ISNUMBER(MATCH(X9,календарь!$C:$C,)),1,IF(OR(ISNUMBER(MATCH(X9,календарь!$A:$A,)),ISNUMBER(MATCH(X9,календарь!$B:$B,)),WEEKDAY(X9,2)>5),0,1)),\"\")","v":1},{"$f":"IF(Y9<>\"\",IF(ISNUMBER(MATCH(Y9,календарь!$C:$C,)),1,IF(OR(ISNUMBER(MATCH(Y9,календарь!$A:$A,)),ISNUMBER(MATCH(Y9,календарь!$B:$B,)),WEEKDAY(Y9,2)>5),0,1)),\"\")","v":1},{"$f":"IF(Z9<>\"\",IF(ISNUMBER(MATCH(Z9,календарь!$C:$C,)),1,IF(OR(ISNUMBER(MATCH(Z9,календарь!$A:$A,)),ISNUMBER(MATCH(Z9,календарь!$B:$B,)),WEEKDAY(Z9,2)>5),0,1)),\"\")","v":1},{"$f":"IF(AA9<>\"\",IF(ISNUMBER(MATCH(AA9,календарь!$C:$C,)),1,IF(OR(ISNUMBER(MATCH(AA9,календарь!$A:$A,)),ISNUMBER(MATCH(AA9,календарь!$B:$B,)),WEEKDAY(AA9,2)>5),0,1)),\"\")","v":1},{"$f":"IF(AB9<>\"\",IF(ISNUMBER(MATCH(AB9,календарь!$C:$C,)),1,IF(OR(ISNUMBER(MATCH(AB9,календарь!$A:$A,)),ISNUMBER(MATCH(AB9,календарь!$B:$B,)),WEEKDAY(AB9,2)>5),0,1)),\"\")","v":0},{"$f":"IF(AC9<>\"\",IF(ISNUMBER(MATCH(AC9,календарь!$C:$C,)),1,IF(OR(ISNUMBER(MATCH(AC9,календарь!$A:$A,)),ISNUMBER(MATCH(AC9,календарь!$B:$B,)),WEEKDAY(AC9,2)>5),0,1)),\"\")","v":0},{"$f":"IF(AD9<>\"\",IF(ISNUMBER(MATCH(AD9,календарь!$C:$C,)),1,IF(OR(ISNUMBER(MATCH(AD9,календарь!$A:$A,)),ISNUMBER(MATCH(AD9,календарь!$B:$B,)),WEEKDAY(AD9,2)>5),0,1)),\"\")","v":1},{"$f":"IF(AE9<>\"\",IF(ISNUMBER(MATCH(AE9,календарь!$C:$C,)),1,IF(OR(ISNUMBER(MATCH(AE9,календарь!$A:$A,)),ISNUMBER(MATCH(AE9,календарь!$B:$B,)),WEEKDAY(AE9,2)>5),0,1)),\"\")","v":1},{"$f":"IF(AF9<>\"\",IF(ISNUMBER(MATCH(AF9,календарь!$C:$C,)),1,IF(OR(ISNUMBER(MATCH(AF9,календарь!$A:$A,)),ISNUMBER(MATCH(AF9,календарь!$B:$B,)),WEEKDAY(AF9,2)>5),0,1)),\"\")","v":1},{"$f":"IF(AG9<>\"\",IF(ISNUMBER(MATCH(AG9,календарь!$C:$C,)),1,IF(OR(ISNUMBER(MATCH(AG9,календарь!$A:$A,)),ISNUMBER(MATCH(AG9,календарь!$B:$B,)),WEEKDAY(AG9,2)>5),0,1)),\"\")","v":1},{"$f":"IF(AH9<>\"\",IF(ISNUMBER(MATCH(AH9,календарь!$C:$C,)),1,IF(OR(ISNUMBER(MATCH(AH9,календарь!$A:$A,)),ISNUMBER(MATCH(AH9,календарь!$B:$B,)),WEEKDAY(AH9,2)>5),0,1)),\"\")","v":1},{"$f":"IF(AI9<>\"\",IF(ISNUMBER(MATCH(AI9,календарь!$C:$C,)),1,IF(OR(ISNUMBER(MATCH(AI9,календарь!$A:$A,)),ISNUMBER(MATCH(AI9,календарь!$B:$B,)),WEEKDAY(AI9,2)>5),0,1)),\"\")","v":0},{"$f":"IF(AJ9<>\"\",IF(ISNUMBER(MATCH(AJ9,календарь!$C:$C,)),1,IF(OR(ISNUMBER(MATCH(AJ9,календарь!$A:$A,)),ISNUMBER(MATCH(AJ9,календарь!$B:$B,)),WEEKDAY(AJ9,2)>5),0,1)),\"\")","v":0}]
[null,1,"Астахова Диана",1,null,null,null,null,null,null,null,null,"н","н",null,null,null,null,null,null,null,null,null,null,null,null,null,null,null,null,null,null,null,null,null,null,{"$f":"COUNTIF(F12:AI12,\"н\")","v":2},null,{"$f":"COUNTIFS(F$11:AJ$11,1,F12:AJ12,\"\")","v":20}]
[null,2,"Герасымчук Назарий",1,null,null,null,null,null,null,null,null,null,null,null,null,null,null,null,null,null,null,null,null,null,null,null,null,null,null,null,null,null,null,null,null,{"$f":"COUNTIF(F13:AI13,\"?\")","v":0},null,{"$f":"COUNTIFS(F$11:AJ$11,1,F13:AJ13,\"\")","v":21}]
[null,3,"Городничева Ясмина",1,null,null,null,null,null,null,null,null,null,null,null,null,null,null,null,null,null,null,null,null,null,null,null,null,null,null,null,null,null,null,null,null,0,null,{"$f":"COUNTIFS(F$11:AJ$11,1,F14:AJ14,\"\")","v":21}]
[null,4,"Захарчук Захар",1,null,null,null,null,null,null,null,null,null,null,null,null,null,null,null,null,null,null,null,null,null,null,null,null,null,null,null,null,null,null,null,null,0,null,21]
[null,5,"Колесников Максим",1,null,null,null,null,null,null,null,null,null,null,null,null,null,null,null,null,null,null,null,null,null,null,null,null,null,null,null,null,null,null,null,null,0,null,21]
[null,6,"Колобов Савелий",1,null,null,null,null,null,null,null,null,null,null,null,null,null,null,null,null,null,null,null,null,null,null,null,null,null,null,null,null,null,null,null,null,0,null,21]
[null,7,"Кудайбердиева Алия",1,null,null,null,null,null,null,null,null,"н","н",null,null,null,null,null,null,null,null,null,null,null,null,null,null,null,null,null,null,null,null,null,null,2,null,20]
[null,8,"Кущ Алиса",1,null,null,null,null,null,null,null,null,null,null,null,null,null,null,null,null,null,null,null,null,null,null,null,null,null,null,null,null,null,null,null,null,0,null,21]
[null,9,"Лиходеев Александр",1,null,null,null,null,null,null,null,null,null,null,null,null,null,null,null,null,null,null,null,null,null,null,null,null,null,null,null,null,null,null,null,null,0,null,21]
[null,10,"Намсараев Мунко",1,null,null,null,null,null,null,null,null,"н",null,null,null,null,null,null,null,null,null,null,null,null,null,null,null,null,null,null,null,null,null,null,null,1,null,20]
[null,11,"Палюшкевич Алёна",1,null,null,null,null,null,null,null,null,"н",null,null,null,null,null,null,null,null,null,null,null,null,null,null,null,null,null,null,null,null,null,null,null,1,null,20]
[null,12,"Попова Екатерина",1,null,null,null,null,null,null,null,null,null,null,null,null,null,null,null,null,null,null,null,null,null,null,null,null,null,null,null,null,null,null,null,null,0,null,21]
[null,13,"Похил Елизавета",1,null,null,null,null,null,null,null,null,null,null,null,null,null,null,null,null,null,null,null,null,null,null,null,null,null,null,null,null,null,null,null,null,0,null,21]
[null,14,"Прокопец Полина","овз",null,null,null,null,null,null,null,null,"н","н",null,null,null,null,null,null,null,null,null,null,null,null,null,null,null,null,null,null,null,null,null,null,2,null,20]
[null,15,"Пыхтин Кирилл",1,null,null,null,null,null,null,null,null,null,null,null,null,null,null,null,null,null,null,null,null,null,null,null,null,null,null,null,null,null,null,null,null,0,null,21]
[null,16,"Пятых Максим",1,null,null,null,null,null,null,null,null,"н",null,null,null,null,null,null,null,null,null,null,null,null,null,null,null,null,null,null,null,null,null,null,null,1,null,20]
[null,17,"Саидахмедова Арианна",1,null,null,null,null,null,null,null,null,null,null,null,null,null,null,null,null,null,null,null,null,null,null,null,null,null,null,null,null,null,null,null,null,0,null,21]
[null,18,"Скачков Никита",1,null,null,null,null,null,null,null,null,null,null,null,null,null,null,null,null,null,null,null,null,null,null,null,null,null,null,null,null,null,null,null,null,0,null,21]
[null,19,"Смагина Ульяна",1,1,null,null,null,null,null,null,null,null,null,null,null,null,null,null,null,null,null,null,null,null,null,null,null,null,null,null,null,null,null,null,null,0,null,21]
[null,20,"Спиридонова Маргарита",1,null,null,null,null,null,null,null,null,null,null,null,null,null,null,null,null,null,null,null,null,null,null,null,null,null,null,null,null,null,null,null,null,0,null,21]
[null,21,"Ушаков Савва",null,null,null,null,null,null,null,null,null,null,null,null,null,null,null,null,null,null,null,null,null,null,null,null,null,null,null,null,null,null,null,null,null,0,null,21]
[null,22,"Холевинский Кирилл",null,null,null,null,null,null,null,null,null,null,null,null,null,null,null,null,null,null,null,null,null,null,null,null,null,null,null,null,null,null,null,null,null,0,null,21]
[null,23,"Шапанова Марям",null,null,null,null,null,null,null,null,null,null,null,null,null,null,null,null,null,null,null,null,null,null,null,null,null,null,null,null,null,null,null,null,null,0,null,21]
[null,24,"Шапран Софья",null,null,null,null,null,null,null,null,null,null,null,null,null,null,null,null,null,null,null,null,null,null,null,null,null,null,null,null,null,null,null,null,null,0,null,21]
["н",25,"Юсупов Матвей",null,null,null,null,null,null,null,null,null,null,null,null,null,null,null,null,null,null,null,null,null,null,null,null,null,null,null,null,null,null,null,null,null,0,null,21]
[null,26,"Жаркой Виктор",null,null,null,null,null,null,null,null,null,null,null,null,null,null,null,null,null,null,null,null,null,null,null,null,null,null,null,null,null,null,null,null,null,0,null,21]
[]
[null,null,null,null,null,{"$f":"COUNTBLANK(F12:F37)","v":26},26,26,26,26,26,26,20,23,26,26,26,26,26,26,26,26,26,26,26,26,26,26,26,26,26,26,26,26,26,26]
[null,null," Директор МБОУ",null,null,null,null,null,null,null,null,null,null,null,"Т.В. Павлюкевич"]
[null,null,"\"СОШ пгт.Южно-Курильск\"",null,"(подпись)",null,null,null,null,null,null,null,null,null,"(расшифрока подписи)"]
[null,null,"Организатор питания"]
[null,null,null,null,"(подпись)",null,null,null,null,null,null,null,null,null,"(расшифрока подписи)"]
[null,null,"Классный руководитель",null,null,null,null,null,null,null,null,null,null,null,"Л. А. Ильина "]
[null,null,null,null,"(подпись)",null,null,null,null,null,null,null,null,null,"(расшифрока подписи)"]